[Event "December 12 Early 2023"]
[Site "https://www.chess.com"]
[Date "2023.12.12"]
[Round "5"]
[White "Zavgorodniy, Sergiy"]
[Black "Steinberg, Nitzan"]
[Result "1-0"]
[Board "13"]
[TimeControl "180+1"]
[WhiteFideId "14110148"]
[BlackFideId "2801795"]
[WhiteElo "2695"]
[BlackElo "2892"]
[WhiteTeam "UKR"]
[BlackTeam "ISR"]
[WhiteClock "0:00:05"]
[BlackClock "0:00:00"]

1. e4 {[%clk 0:03:00]}  c5 {[%clk 0:02:59]} 2. Nf3 {[%clk 0:02:59]}  d6 {[%clk 0:02:59]} 3. c3 {[%clk 0:02:59]}  Nf6 {[%clk 0:02:59]} 4. Bc4 {[%clk 0:02:57]}  e6 {[%clk 0:02:58]} 5. Qe2 {[%clk 0:02:51]}  Be7 {[%clk 0:02:57]} 6. d4 {[%clk 0:02:49]}  O-O {[%clk 0:02:48]} 7. e5 {[%clk 0:02:49]}  dxe5 {[%clk 0:02:47]} 8. dxe5 {[%clk 0:02:49]}  Nd5 {[%clk 0:02:47]} 9. O-O {[%clk 0:02:48]}  b6 {[%clk 0:02:44]} 10. Bd3 {[%clk 0:02:32]}  Bb7 {[%clk 0:02:37]} 11. Qe4 {[%clk 0:02:19]}  g6 {[%clk 0:02:09]} 12. c4 {[%clk 0:02:09]}  Nc6 {[%clk 0:01:40]} 13. cxd5 {[%clk 0:02:06]}  exd5 {[%clk 0:01:40]} 14. Qg4 {[%clk 0:01:57]}  Bc8 {[%clk 0:01:32]} 15. Qg3 {[%clk 0:01:56]}  Nb4 {[%clk 0:01:31]} 16. Rd1 {[%clk 0:01:36]}  Nxd3 {[%clk 0:01:31]} 17. Rxd3 {[%clk 0:01:36]}  Bf5 {[%clk 0:01:32]} 18. Rd1 {[%clk 0:01:36]}  d4 {[%clk 0:01:32]} 19. Bh6 {[%clk 0:01:29]}  Re8 {[%clk 0:01:32]} 20. Nbd2 {[%clk 0:01:29]}  Qd5 {[%clk 0:01:28]} 21. b3 {[%clk 0:01:21]}  b5 {[%clk 0:01:24]} 22. Rac1 {[%clk 0:01:20]}  Rac8 {[%clk 0:01:24]} 23. Nh4 {[%clk 0:01:06]}  Bd7 {[%clk 0:01:09]} 24. Ndf3 {[%clk 0:01:05]}  a5 {[%clk 0:00:58]} 25. Qf4 {[%clk 0:00:55]}  b4 {[%clk 0:00:44]} 26. Bg5 {[%clk 0:00:50]}  Bf8 {[%clk 0:00:44]} 27. h3 {[%clk 0:00:50]}  a4 {[%clk 0:00:43]} 28. Re1 {[%clk 0:00:40]}  axb3 {[%clk 0:00:43]} 29. axb3 {[%clk 0:00:41]}  Qxb3 {[%clk 0:00:36]} 30. Nh2 {[%clk 0:00:41]}  Qd5 {[%clk 0:00:27]} 31. Ng4 {[%clk 0:00:41]}  Bxg4 {[%clk 0:00:27]} 32. hxg4 {[%clk 0:00:41]}  b3 {[%clk 0:00:26]} 33. Qd2 {[%clk 0:00:33]}  c4 {[%clk 0:00:23]} 34. Nf3 {[%clk 0:00:32]}  d3 {[%clk 0:00:14]} 35. Bh6 {[%clk 0:00:27]}  Be7 {[%clk 0:00:12]} 36. Bg5 {[%clk 0:00:26]}  Bf8 {[%clk 0:00:11]} 37. Rc3 {[%clk 0:00:26]}  Rb8 {[%clk 0:00:09]} 38. Bf6 {[%clk 0:00:25]}  Rb7 {[%clk 0:00:05]} 39. Rec1 {[%clk 0:00:23]}  Ra8 {[%clk 0:00:04]} 40. Ng5 {[%clk 0:00:17]}  Ra2 {[%clk 0:00:03]} 41. Qf4 {[%clk 0:00:16]}  Bc5 {[%clk 0:00:02]} 42. Nh3 {[%clk 0:00:14]}  b2 {[%clk 0:00:01]} 43. Rb1 {[%clk 0:00:13]}  Ra1 {[%clk 0:00:01]} 44. Kh2 {[%clk 0:00:05]}  Rxb1 {[%clk 0:00:01]} 45. Rxc4 {[%clk 0:00:06]}  Bf8 {[%clk 0:00:00]} 46. Rc8 {[%clk 0:00:05]} 1-0

[Event "December 12 Early 2023"]
[Site "https://www.chess.com"]
[Date "2023.12.12"]
[Round "5"]
[White "Le, Tuan Minh"]
[Black "Cremisi, Daniel"]
[Result "1-0"]
[Board "15"]
[TimeControl "180+1"]
[WhiteFideId "12401153"]
[BlackFideId "2089882"]
[WhiteElo "3069"]
[BlackElo "2638"]
[WhiteTeam "VIE"]
[BlackTeam "USA"]
[WhiteClock "0:01:14"]
[BlackClock "0:00:02"]

1. d4 {[%clk 0:03:00]}  d5 {[%clk 0:02:58]} 2. c4 {[%clk 0:03:00]}  c6 {[%clk 0:02:58]} 3. Nf3 {[%clk 0:02:58]}  e6 {[%clk 0:02:57]} 4. e3 {[%clk 0:02:57]}  Nf6 {[%clk 0:02:57]} 5. Nbd2 {[%clk 0:02:57]}  Nbd7 {[%clk 0:02:57]} 6. Qc2 {[%clk 0:02:57]}  Bd6 {[%clk 0:02:57]} 7. Bd3 {[%clk 0:02:56]}  O-O {[%clk 0:02:57]} 8. O-O {[%clk 0:02:57]}  Qe7 {[%clk 0:02:43]} 9. e4 {[%clk 0:02:48]}  dxe4 {[%clk 0:02:43]} 10. Nxe4 {[%clk 0:02:47]}  Nxe4 {[%clk 0:02:43]} 11. Bxe4 {[%clk 0:02:48]}  Nf6 {[%clk 0:02:39]} 12. Bd3 {[%clk 0:02:47]}  b6 {[%clk 0:02:38]} 13. Bg5 {[%clk 0:02:45]}  h6 {[%clk 0:02:38]} 14. Bh4 {[%clk 0:02:45]}  Bb7 {[%clk 0:02:39]} 15. Rfe1 {[%clk 0:02:45]}  c5 {[%clk 0:02:35]} 16. d5 {[%clk 0:02:40]}  g5 {[%clk 0:02:28]} 17. Bg3 {[%clk 0:01:34]}  Bxg3 {[%clk 0:02:16]} 18. hxg3 {[%clk 0:01:32]}  Qd6 {[%clk 0:01:29]} 19. dxe6 {[%clk 0:01:31]}  fxe6 {[%clk 0:01:28]} 20. Rad1 {[%clk 0:01:31]}  Qc6 {[%clk 0:01:27]} 21. Bf1 {[%clk 0:01:29]}  Kg7 {[%clk 0:00:58]} 22. Ne5 {[%clk 0:01:28]}  Qe8 {[%clk 0:00:57]} 23. Rd6 {[%clk 0:01:29]}  Rg8 {[%clk 0:00:43]} 24. f3 {[%clk 0:01:16]}  Rc8 {[%clk 0:00:13]} 25. Red1 {[%clk 0:01:15]}  Rc7 {[%clk 0:00:13]} 26. Rd8 {[%clk 0:01:13]}  Qh5 {[%clk 0:00:02]} 27. g4 {[%clk 0:01:14]} 1-0

[Event "December 12 Early 2023"]
[Site "https://www.chess.com"]
[Date "2023.12.12"]
[Round "5"]
[White "Pranav, V"]
[Black "Rychkov, Oleg"]
[Result "1-0"]
[Board "16"]
[TimeControl "180+1"]
[WhiteFideId "25060783"]
[BlackFideId "4122852"]
[WhiteElo "3056"]
[BlackElo "2747"]
[WhiteTeam "IND"]
[BlackTeam "RUS"]
[WhiteClock "0:00:14"]
[BlackClock "0:00:09"]

1. e4 {[%clk 0:03:00]}  e5 {[%clk 0:02:59]} 2. Nf3 {[%clk 0:03:00]}  Nc6 {[%clk 0:02:59]} 3. Bb5 {[%clk 0:03:01]}  a6 {[%clk 0:02:58]} 4. Ba4 {[%clk 0:03:01]}  d6 {[%clk 0:02:58]} 5. Bxc6+ {[%clk 0:03:00]}  bxc6 {[%clk 0:02:58]} 6. d4 {[%clk 0:03:01]}  f6 {[%clk 0:02:57]} 7. O-O {[%clk 0:03:00]}  Ne7 {[%clk 0:02:56]} 8. Qd3 {[%clk 0:02:59]}  Ng6 {[%clk 0:02:55]} 9. Nc3 {[%clk 0:02:56]}  Be7 {[%clk 0:02:52]} 10. Qc4 {[%clk 0:02:50]}  Bd7 {[%clk 0:02:47]} 11. h3 {[%clk 0:02:47]}  Qb8 {[%clk 0:02:27]} 12. Rd1 {[%clk 0:02:23]}  a5 {[%clk 0:02:21]} 13. a3 {[%clk 0:02:20]}  Qb7 {[%clk 0:02:18]} 14. Be3 {[%clk 0:02:08]}  Qa6 {[%clk 0:02:04]} 15. Qa2 {[%clk 0:02:06]}  Nf8 {[%clk 0:01:57]} 16. Rd2 {[%clk 0:01:57]}  Be6 {[%clk 0:01:55]} 17. d5 {[%clk 0:01:57]}  Bf7 {[%clk 0:01:55]} 18. Nh4 {[%clk 0:01:50]}  g6 {[%clk 0:01:53]} 19. Nf3 {[%clk 0:01:46]}  Nd7 {[%clk 0:01:53]} 20. Bh6 {[%clk 0:01:44]}  Nb6 {[%clk 0:01:50]} 21. b3 {[%clk 0:01:40]}  cxd5 {[%clk 0:01:48]} 22. exd5 {[%clk 0:01:39]}  a4 {[%clk 0:01:43]} 23. Qb1 {[%clk 0:01:33]}  f5 {[%clk 0:01:36]} 24. Qd1 {[%clk 0:01:27]}  Qa5 {[%clk 0:01:26]} 25. Nxa4 {[%clk 0:01:18]}  Nxa4 {[%clk 0:01:22]} 26. bxa4 {[%clk 0:01:19]}  Qxa4 {[%clk 0:01:22]} 27. Rb1 {[%clk 0:01:18]}  Kd7 {[%clk 0:01:18]} 28. Qe2 {[%clk 0:01:04]}  Rhb8 {[%clk 0:01:13]} 29. Re1 {[%clk 0:01:02]}  Bf6 {[%clk 0:01:03]} 30. Bg5 {[%clk 0:00:58]}  Bg7 {[%clk 0:01:03]} 31. Nd4 {[%clk 0:00:55]}  Qxa3 {[%clk 0:00:52]} 32. Ne6 {[%clk 0:00:46]}  Bh8 {[%clk 0:00:23]} 33. Qc4 {[%clk 0:00:45]}  Qa5 {[%clk 0:00:14]} 34. Qc6+ {[%clk 0:00:44]}  Kc8 {[%clk 0:00:14]} 35. Nf8 {[%clk 0:00:32]}  f4 {[%clk 0:00:12]} 36. Qd7+ {[%clk 0:00:31]}  Kb7 {[%clk 0:00:12]} 37. Rdd1 {[%clk 0:00:23]}  Bxd5 {[%clk 0:00:11]} 38. Rb1+ {[%clk 0:00:20]}  Ka7 {[%clk 0:00:12]} 39. Ra1 {[%clk 0:00:20]}  Ba2 {[%clk 0:00:12]} 40. Ne6 {[%clk 0:00:20]}  Rb7 {[%clk 0:00:12]} 41. Nd8 {[%clk 0:00:17]}  Rb2 {[%clk 0:00:10]} 42. Nc6+ {[%clk 0:00:17]}  Kb6 {[%clk 0:00:11]} 43. Nxa5 {[%clk 0:00:17]}  Ra6 {[%clk 0:00:09]} 44. Nb3 {[%clk 0:00:14]} 1-0

[Event "December 12 Early 2023"]
[Site "https://www.chess.com"]
[Date "2023.12.12"]
[Round "5"]
[White "Sarana, Alexey"]
[Black "Mindlin, Alon"]
[Result "1-0"]
[Board "19"]
[TimeControl "180+1"]
[WhiteFideId "24133795"]
[BlackFideId "2800071"]
[WhiteElo "3022"]
[BlackElo "2735"]
[WhiteTeam "SRB"]
[BlackTeam "ISR"]
[WhiteClock "0:00:51"]
[BlackClock "0:00:24"]

1. d4 {[%clk 0:02:56]}  Nf6 {[%clk 0:02:59]} 2. c4 {[%clk 0:02:57]}  e6 {[%clk 0:02:59]} 3. Nc3 {[%clk 0:02:57]}  d5 {[%clk 0:02:57]} 4. Bg5 {[%clk 0:02:56]}  Be7 {[%clk 0:02:57]} 5. e3 {[%clk 0:02:56]}  O-O {[%clk 0:02:57]} 6. Nf3 {[%clk 0:02:55]}  h6 {[%clk 0:02:57]} 7. Bxf6 {[%clk 0:02:55]}  Bxf6 {[%clk 0:02:57]} 8. cxd5 {[%clk 0:02:55]}  exd5 {[%clk 0:02:58]} 9. Qb3 {[%clk 0:02:56]}  c6 {[%clk 0:02:55]} 10. Bd3 {[%clk 0:02:55]}  Re8 {[%clk 0:02:51]} 11. O-O {[%clk 0:02:55]}  Qb6 {[%clk 0:02:49]} 12. Qc2 {[%clk 0:02:54]}  Bg4 {[%clk 0:02:47]} 13. Nd2 {[%clk 0:02:52]}  Nd7 {[%clk 0:02:39]} 14. h3 {[%clk 0:02:44]}  Be6 {[%clk 0:02:39]} 15. Rab1 {[%clk 0:02:33]}  a5 {[%clk 0:02:37]} 16. a3 {[%clk 0:02:32]}  Rec8 {[%clk 0:02:09]} 17. b4 {[%clk 0:02:31]}  axb4 {[%clk 0:02:10]} 18. axb4 {[%clk 0:02:32]}  Qd8 {[%clk 0:02:09]} 19. Na4 {[%clk 0:02:30]}  b5 {[%clk 0:02:06]} 20. Nc5 {[%clk 0:02:30]}  Nxc5 {[%clk 0:02:05]} 21. Qxc5 {[%clk 0:02:31]}  Be7 {[%clk 0:02:04]} 22. Qc3 {[%clk 0:02:29]}  Qd7 {[%clk 0:02:00]} 23. Nf3 {[%clk 0:02:28]}  Bd6 {[%clk 0:01:58]} 24. Rfc1 {[%clk 0:02:26]}  Bf5 {[%clk 0:01:50]} 25. Bxf5 {[%clk 0:02:23]}  Qxf5 {[%clk 0:01:51]} 26. Qc2 {[%clk 0:02:23]}  Qd7 {[%clk 0:01:42]} 27. Ne1 {[%clk 0:02:22]}  Ra6 {[%clk 0:01:39]} 28. Nd3 {[%clk 0:02:21]}  Rca8 {[%clk 0:01:39]} 29. Qd1 {[%clk 0:02:14]}  Qf5 {[%clk 0:01:36]} 30. Rc3 {[%clk 0:02:13]}  Ra3 {[%clk 0:01:20]} 31. Rbc1 {[%clk 0:02:08]}  Rxc3 {[%clk 0:01:20]} 32. Rxc3 {[%clk 0:02:09]}  g6 {[%clk 0:01:20]} 33. Rxc6 {[%clk 0:01:57]}  Ra3 {[%clk 0:01:12]} 34. Rxd6 {[%clk 0:01:50]}  Rxd3 {[%clk 0:01:11]} 35. Qf3 {[%clk 0:01:50]}  Qxf3 {[%clk 0:01:07]} 36. gxf3 {[%clk 0:01:51]}  Rb3 {[%clk 0:01:08]} 37. Rxd5 {[%clk 0:01:51]}  Rxb4 {[%clk 0:01:08]} 38. Kg2 {[%clk 0:01:49]}  Rb1 {[%clk 0:01:06]} 39. h4 {[%clk 0:01:50]}  b4 {[%clk 0:01:05]} 40. Rb5 {[%clk 0:01:45]}  b3 {[%clk 0:01:05]} 41. f4 {[%clk 0:01:45]}  b2 {[%clk 0:01:04]} 42. Kf3 {[%clk 0:01:44]}  f5 {[%clk 0:01:03]} 43. Rb7 {[%clk 0:01:31]}  Kf8 {[%clk 0:01:01]} 44. Ke2 {[%clk 0:01:31]}  Ke8 {[%clk 0:00:59]} 45. d5 {[%clk 0:01:16]}  Kd8 {[%clk 0:00:57]} 46. d6 {[%clk 0:01:16]}  Rh1 {[%clk 0:00:48]} 47. Rxb2 {[%clk 0:01:13]}  Rxh4 {[%clk 0:00:47]} 48. Rb8+ {[%clk 0:01:05]}  Kd7 {[%clk 0:00:47]} 49. Rg8 {[%clk 0:01:06]}  Rg4 {[%clk 0:00:45]} 50. f3 {[%clk 0:01:05]}  Rg2+ {[%clk 0:00:32]} 51. Kf1 {[%clk 0:01:05]}  Rd2 {[%clk 0:00:33]} 52. Rxg6 {[%clk 0:01:05]}  Rxd6 {[%clk 0:00:33]} 53. Rxd6+ {[%clk 0:00:53]}  Kxd6 {[%clk 0:00:34]} 54. Kg2 {[%clk 0:00:53]}  Kd5 {[%clk 0:00:34]} 55. Kg3 {[%clk 0:00:53]}  Kc4 {[%clk 0:00:32]} 56. e4 {[%clk 0:00:53]}  Kd4 {[%clk 0:00:24]} 57. e5 {[%clk 0:00:51]} 1-0

[Event "December 12 Early 2023"]
[Site "https://www.chess.com"]
[Date "2023.12.12"]
[Round "5"]
[White "Khismatullin, Denis"]
[Black "Kosteniuk, Alexandra"]
[Result "1-0"]
[Board "20"]
[TimeControl "180+1"]
[WhiteFideId "4142578"]
[BlackFideId "4128125"]
[WhiteElo "2978"]
[BlackElo "2723"]
[WhiteTeam "RUS"]
[BlackTeam "SUI"]
[WhiteClock "0:01:11"]
[BlackClock "0:00:28"]

1. c4 {[%clk 0:03:00]}  f5 {[%clk 0:02:57]} 2. Nc3 {[%clk 0:02:58]}  Nf6 {[%clk 0:02:57]} 3. Nf3 {[%clk 0:02:57]}  g6 {[%clk 0:02:54]} 4. b4 {[%clk 0:02:54]}  Bg7 {[%clk 0:02:50]} 5. Bb2 {[%clk 0:02:54]}  d6 {[%clk 0:02:48]} 6. d4 {[%clk 0:02:53]}  a5 {[%clk 0:02:48]} 7. b5 {[%clk 0:02:52]}  Nbd7 {[%clk 0:02:45]} 8. Ng5 {[%clk 0:02:45]}  Nf8 {[%clk 0:02:39]} 9. e3 {[%clk 0:02:44]}  h6 {[%clk 0:02:37]} 10. Nf3 {[%clk 0:02:43]}  e6 {[%clk 0:02:31]} 11. Bd3 {[%clk 0:02:40]}  d5 {[%clk 0:02:15]} 12. O-O {[%clk 0:02:38]}  Ne4 {[%clk 0:02:09]} 13. Ne5 {[%clk 0:02:26]}  c6 {[%clk 0:01:41]} 14. bxc6 {[%clk 0:02:20]}  bxc6 {[%clk 0:01:42]} 15. Bxe4 {[%clk 0:02:14]}  fxe4 {[%clk 0:01:34]} 16. Ba3 {[%clk 0:02:11]}  Qc7 {[%clk 0:01:22]} 17. Rc1 {[%clk 0:02:01]}  Bxe5 {[%clk 0:01:17]} 18. dxe5 {[%clk 0:02:02]}  Qxe5 {[%clk 0:01:17]} 19. Na4 {[%clk 0:01:59]}  Rh7 {[%clk 0:01:01]} 20. cxd5 {[%clk 0:01:57]}  exd5 {[%clk 0:00:56]} 21. Nb6 {[%clk 0:01:50]}  Rb8 {[%clk 0:00:53]} 22. Rxc6 {[%clk 0:01:48]}  Bd7 {[%clk 0:00:52]} 23. Rd6 {[%clk 0:01:40]}  Bb5 {[%clk 0:00:31]} 24. Rxd5 {[%clk 0:01:29]}  Qc7 {[%clk 0:00:31]} 25. Rxb5 {[%clk 0:01:20]}  Rxb6 {[%clk 0:00:31]} 26. Rxb6 {[%clk 0:01:12]}  Qxb6 {[%clk 0:00:32]} 27. Qd5 {[%clk 0:01:12]}  Qe6 {[%clk 0:00:28]} 28. Qa8+ {[%clk 0:01:11]} 1-0

[Event "December 12 Early 2023"]
[Site "https://www.chess.com"]
[Date "2023.12.12"]
[Round "5"]
[White "Arslanov, Shamil"]
[Black "Terry, Renato"]
[Result "1-0"]
[Board "21"]
[TimeControl "180+1"]
[WhiteFideId "4192826"]
[BlackFideId "3803457"]
[WhiteElo "2722"]
[BlackElo "2974"]
[WhiteTeam "RUS"]
[BlackTeam "PER"]
[WhiteClock "0:00:26"]
[BlackClock "0:02:11"]

1. d4 {[%clk 0:02:48]}  e6 {[%clk 0:02:58]} 2. e4 {[%clk 0:02:47]}  d5 {[%clk 0:02:58]} 3. Nc3 {[%clk 0:02:47]}  Nf6 {[%clk 0:02:58]} 4. Bg5 {[%clk 0:02:40]}  Bb4 {[%clk 0:02:58]} 5. e5 {[%clk 0:02:29]}  h6 {[%clk 0:02:57]} 6. Bd2 {[%clk 0:02:29]}  Bxc3 {[%clk 0:02:57]} 7. bxc3 {[%clk 0:02:30]}  Ne4 {[%clk 0:02:57]} 8. Bd3 {[%clk 0:02:31]}  Nxd2 {[%clk 0:02:58]} 9. Qxd2 {[%clk 0:02:29]}  c5 {[%clk 0:02:58]} 10. dxc5 {[%clk 0:02:08]}  Nd7 {[%clk 0:02:57]} 11. Nf3 {[%clk 0:02:07]}  Nxc5 {[%clk 0:02:57]} 12. O-O {[%clk 0:02:04]}  O-O {[%clk 0:02:56]} 13. Nd4 {[%clk 0:02:02]}  Bd7 {[%clk 0:02:40]} 14. f4 {[%clk 0:02:00]}  Rc8 {[%clk 0:02:41]} 15. f5 {[%clk 0:01:36]}  exf5 {[%clk 0:02:41]} 16. Bxf5 {[%clk 0:01:22]}  Bxf5 {[%clk 0:02:39]} 17. Nxf5 {[%clk 0:01:22]}  Ne4 {[%clk 0:02:39]} 18. Qxd5 {[%clk 0:01:23]}  Nxc3 {[%clk 0:02:38]} 19. Qxb7 {[%clk 0:00:54]}  Qa5 {[%clk 0:02:37]} 20. Ne7+ {[%clk 0:00:51]}  Kh7 {[%clk 0:02:29]} 21. Nxc8 {[%clk 0:00:50]}  Qc5+ {[%clk 0:02:24]} 22. Kh1 {[%clk 0:00:50]}  Rxc8 {[%clk 0:02:23]} 23. Rxf7 {[%clk 0:00:44]}  Rg8 {[%clk 0:02:23]} 24. Re1 {[%clk 0:00:29]}  Nd5 {[%clk 0:02:16]} 25. e6 {[%clk 0:00:28]}  Qc3 {[%clk 0:02:17]} 26. Rff1 {[%clk 0:00:27]}  Ne3 {[%clk 0:02:11]} 27. Qe4+ {[%clk 0:00:26]} 1-0

[Event "December 12 Early 2023"]
[Site "https://www.chess.com"]
[Date "2023.12.12"]
[Round "5"]
[White "Kourkoulos-Arditis, Stamatis"]
[Black "Ivic, Velimir"]
[Result "1-0"]
[Board "22"]
[TimeControl "180+1"]
[WhiteFideId "4221990"]
[BlackFideId "950122"]
[WhiteElo "2708"]
[BlackElo "2957"]
[WhiteTeam "GRE"]
[BlackTeam "SRB"]
[WhiteClock "0:00:10"]
[BlackClock "0:00:11"]

1. e4 {[%clk 0:03:00]}  c5 {[%clk 0:02:55]} 2. Nf3 {[%clk 0:03:00]}  Nc6 {[%clk 0:02:53]} 3. b3 {[%clk 0:02:57]}  e5 {[%clk 0:02:51]} 4. Bb5 {[%clk 0:02:53]}  Nf6 {[%clk 0:02:50]} 5. Nc3 {[%clk 0:02:53]}  d6 {[%clk 0:02:48]} 6. h3 {[%clk 0:02:49]}  Be7 {[%clk 0:02:48]} 7. O-O {[%clk 0:02:49]}  O-O {[%clk 0:02:48]} 8. Bxc6 {[%clk 0:02:48]}  bxc6 {[%clk 0:02:49]} 9. d3 {[%clk 0:02:48]}  Re8 {[%clk 0:02:33]} 10. Nh2 {[%clk 0:02:48]}  Be6 {[%clk 0:02:32]} 11. f4 {[%clk 0:02:48]}  exf4 {[%clk 0:02:33]} 12. Bxf4 {[%clk 0:02:48]}  Nd7 {[%clk 0:02:31]} 13. Qd2 {[%clk 0:02:42]}  Qc7 {[%clk 0:02:22]} 14. Rae1 {[%clk 0:02:42]}  Rad8 {[%clk 0:02:21]} 15. Nd1 {[%clk 0:02:42]}  Bf6 {[%clk 0:02:12]} 16. Ne3 {[%clk 0:02:42]}  Be5 {[%clk 0:02:08]} 17. Neg4 {[%clk 0:02:32]}  f6 {[%clk 0:01:50]} 18. Kh1 {[%clk 0:02:20]}  Nf8 {[%clk 0:01:37]} 19. Nxe5 {[%clk 0:01:50]}  dxe5 {[%clk 0:01:31]} 20. Be3 {[%clk 0:01:43]}  c4 {[%clk 0:01:32]} 21. bxc4 {[%clk 0:01:40]}  Bxc4 {[%clk 0:01:32]} 22. Qf2 {[%clk 0:01:30]}  Be6 {[%clk 0:01:21]} 23. a3 {[%clk 0:01:23]}  Rd7 {[%clk 0:01:13]} 24. Rb1 {[%clk 0:01:22]}  Rb8 {[%clk 0:01:12]} 25. Nf3 {[%clk 0:01:19]}  Rb5 {[%clk 0:00:48]} 26. Bc5 {[%clk 0:01:06]}  Ng6 {[%clk 0:00:42]} 27. a4 {[%clk 0:00:36]}  Rb7 {[%clk 0:00:42]} 28. Qd2 {[%clk 0:00:22]}  h6 {[%clk 0:00:36]} 29. Qc3 {[%clk 0:00:19]}  Kh7 {[%clk 0:00:35]} 30. Be3 {[%clk 0:00:17]}  Qb8 {[%clk 0:00:29]} 31. Rxb7 {[%clk 0:00:15]}  Qxb7 {[%clk 0:00:30]} 32. Kh2 {[%clk 0:00:13]}  Bf7 {[%clk 0:00:23]} 33. Qc5 {[%clk 0:00:10]}  Kg8 {[%clk 0:00:17]} 34. a5 {[%clk 0:00:10]}  Nf8 {[%clk 0:00:17]} 35. Nh4 {[%clk 0:00:10]}  Ne6 {[%clk 0:00:17]} 36. Qc3 {[%clk 0:00:11]}  Kh7 {[%clk 0:00:14]} 37. Nf5 {[%clk 0:00:11]}  Bg6 {[%clk 0:00:15]} 38. Nxh6 {[%clk 0:00:09]}  gxh6 {[%clk 0:00:14]} 39. Rxf6 {[%clk 0:00:09]}  Bf7 {[%clk 0:00:11]} 40. Qxe5 {[%clk 0:00:09]}  Qc7 {[%clk 0:00:11]} 41. Rxh6+ {[%clk 0:00:09]}  Kg8 {[%clk 0:00:11]} 42. Rh8# {[%clk 0:00:10]} 1-0

[Event "December 12 Early 2023"]
[Site "https://www.chess.com"]
[Date "2023.12.12"]
[Round "5"]
[White "Chinguun, Sumiya"]
[Black "Zhigalko, Sergei"]
[Result "0-1"]
[Board "23"]
[TimeControl "180+1"]
[WhiteFideId "4902572"]
[BlackFideId "13502956"]
[WhiteElo "2691"]
[BlackElo "2948"]
[WhiteTeam "MGL"]
[BlackTeam "BLR"]
[WhiteClock "0:01:20"]
[BlackClock "0:00:03"]

1. e4 {[%clk 0:02:59]}  c5 {[%clk 0:03:00]} 2. Nc3 {[%clk 0:02:59]}  Nc6 {[%clk 0:03:00]} 3. Bb5 {[%clk 0:02:59]}  Nd4 {[%clk 0:03:00]} 4. Nf3 {[%clk 0:02:59]}  e6 {[%clk 0:02:59]} 5. O-O {[%clk 0:02:56]}  a6 {[%clk 0:02:59]} 6. Bd3 {[%clk 0:02:56]}  Nxf3+ {[%clk 0:02:59]} 7. Qxf3 {[%clk 0:02:56]}  Qc7 {[%clk 0:03:00]} 8. b3 {[%clk 0:02:55]}  Bd6 {[%clk 0:03:00]} 9. h3 {[%clk 0:02:51]}  Ne7 {[%clk 0:03:00]} 10. Bb2 {[%clk 0:02:51]}  Be5 {[%clk 0:02:54]} 11. Na4 {[%clk 0:02:51]}  Bxb2 {[%clk 0:02:30]} 12. Nxb2 {[%clk 0:02:51]}  O-O {[%clk 0:02:31]} 13. Rae1 {[%clk 0:02:49]}  b5 {[%clk 0:02:29]} 14. e5 {[%clk 0:02:49]}  Bb7 {[%clk 0:02:25]} 15. Qh5 {[%clk 0:02:47]}  Ng6 {[%clk 0:02:18]} 16. f4 {[%clk 0:02:43]}  d6 {[%clk 0:02:11]} 17. Bxg6 {[%clk 0:02:38]}  hxg6 {[%clk 0:01:59]} 18. Qh4 {[%clk 0:02:37]}  dxe5 {[%clk 0:01:35]} 19. fxe5 {[%clk 0:02:36]}  Rad8 {[%clk 0:01:35]} 20. d3 {[%clk 0:02:36]}  Rd4 {[%clk 0:01:33]} 21. Qg3 {[%clk 0:02:36]}  Qa5 {[%clk 0:01:31]} 22. a4 {[%clk 0:02:35]}  Qc3 {[%clk 0:01:27]} 23. Nd1 {[%clk 0:02:19]}  Qxc2 {[%clk 0:01:25]} 24. axb5 {[%clk 0:02:16]}  axb5 {[%clk 0:01:17]} 25. Rf2 {[%clk 0:02:12]}  Qxb3 {[%clk 0:01:05]} 26. Rb2 {[%clk 0:02:07]}  Qa4 {[%clk 0:00:56]} 27. Nc3 {[%clk 0:02:04]}  Qa3 {[%clk 0:00:38]} 28. Rxb5 {[%clk 0:01:56]}  Qxc3 {[%clk 0:00:28]} 29. Rxb7 {[%clk 0:01:55]}  Rxd3 {[%clk 0:00:25]} 30. Qf2 {[%clk 0:01:56]}  Rd5 {[%clk 0:00:21]} 31. Rc7 {[%clk 0:01:51]}  Rxe5 {[%clk 0:00:14]} 32. Rxe5 {[%clk 0:01:52]}  Qxe5 {[%clk 0:00:15]} 33. Rxc5 {[%clk 0:01:52]}  Qd6 {[%clk 0:00:13]} 34. Rc1 {[%clk 0:01:52]}  Rd8 {[%clk 0:00:13]} 35. Rf1 {[%clk 0:01:52]}  Qd4 {[%clk 0:00:12]} 36. Qxd4 {[%clk 0:01:50]}  Rxd4 {[%clk 0:00:12]} 37. Rc1 {[%clk 0:01:51]}  g5 {[%clk 0:00:11]} 38. Kf2 {[%clk 0:01:50]}  Kh7 {[%clk 0:00:11]} 39. Rc7 {[%clk 0:01:49]}  Kg6 {[%clk 0:00:10]} 40. Kf3 {[%clk 0:01:50]}  Rf4+ {[%clk 0:00:09]} 41. Ke3 {[%clk 0:01:47]}  Ra4 {[%clk 0:00:10]} 42. Kf3 {[%clk 0:01:47]}  Kf6 {[%clk 0:00:09]} 43. Rc8 {[%clk 0:01:47]}  Ra3+ {[%clk 0:00:09]} 44. Kf2 {[%clk 0:01:47]}  Ra2+ {[%clk 0:00:08]} 45. Kf3 {[%clk 0:01:48]}  Rb2 {[%clk 0:00:09]} 46. Rc6 {[%clk 0:01:47]}  g6 {[%clk 0:00:08]} 47. Rc7 {[%clk 0:01:47]}  Rb3+ {[%clk 0:00:08]} 48. Kf2 {[%clk 0:01:47]}  Ra3 {[%clk 0:00:07]} 49. Rd7 {[%clk 0:01:47]}  Ra6 {[%clk 0:00:07]} 50. Rc7 {[%clk 0:01:47]}  e5 {[%clk 0:00:07]} 51. Kf3 {[%clk 0:01:46]}  Ke6 {[%clk 0:00:07]} 52. Kg4 {[%clk 0:01:47]}  f6 {[%clk 0:00:07]} 53. Rg7 {[%clk 0:01:46]}  Ra4+ {[%clk 0:00:07]} 54. Kf3 {[%clk 0:01:46]}  Ra3+ {[%clk 0:00:07]} 55. Kf2 {[%clk 0:01:44]}  Kf5 {[%clk 0:00:06]} 56. Rc7 {[%clk 0:01:41]}  Ra2+ {[%clk 0:00:05]} 57. Kf3 {[%clk 0:01:40]}  Ra3+ {[%clk 0:00:06]} 58. Kf2 {[%clk 0:01:40]}  g4 {[%clk 0:00:06]} 59. hxg4+ {[%clk 0:01:38]}  Kxg4 {[%clk 0:00:07]} 60. Rc6 {[%clk 0:01:38]}  Kf5 {[%clk 0:00:07]} 61. Rb6 {[%clk 0:01:37]}  g5 {[%clk 0:00:06]} 62. Rc6 {[%clk 0:01:37]}  g4 {[%clk 0:00:07]} 63. Rb6 {[%clk 0:01:37]}  Kg5 {[%clk 0:00:07]} 64. Re6 {[%clk 0:01:36]}  Ra2+ {[%clk 0:00:06]} 65. Kg3 {[%clk 0:01:36]}  Ra3+ {[%clk 0:00:06]} 66. Kf2 {[%clk 0:01:36]}  Rc3 {[%clk 0:00:06]} 67. Ke2 {[%clk 0:01:33]}  Kf5 {[%clk 0:00:06]} 68. Rd6 {[%clk 0:01:31]}  Rc2+ {[%clk 0:00:06]} 69. Kf1 {[%clk 0:01:30]}  g3 {[%clk 0:00:06]} 70. Rb6 {[%clk 0:01:29]}  Kg5 {[%clk 0:00:06]} 71. Re6 {[%clk 0:01:29]}  Rb2 {[%clk 0:00:05]} 72. Re8 {[%clk 0:01:28]}  Rf2+ {[%clk 0:00:05]} 73. Kg1 {[%clk 0:01:28]}  Kf5 {[%clk 0:00:05]} 74. Rg8 {[%clk 0:01:27]}  Kf4 {[%clk 0:00:05]} 75. Rf8 {[%clk 0:01:27]}  f5 {[%clk 0:00:05]} 76. Rc8 {[%clk 0:01:26]}  e4 {[%clk 0:00:05]} 77. Rc3 {[%clk 0:01:26]}  Rd2 {[%clk 0:00:05]} 78. Rc1 {[%clk 0:01:26]}  e3 {[%clk 0:00:04]} 79. Kf1 {[%clk 0:01:25]}  Ke4 {[%clk 0:00:04]} 80. Rc8 {[%clk 0:01:24]}  Rf2+ {[%clk 0:00:03]} 81. Kg1 {[%clk 0:01:24]}  e2 {[%clk 0:00:03]} 82. Re8+ {[%clk 0:01:24]}  Kd3 {[%clk 0:00:02]} 83. Rd8+ {[%clk 0:01:24]}  Ke4 {[%clk 0:00:02]} 84. Re8+ {[%clk 0:01:25]}  Kf4 {[%clk 0:00:02]} 85. Rxe2 {[%clk 0:01:20]}  Rxe2 {[%clk 0:00:03]} 0-1